fUSD/lending_fUSD_20240118
["ID","MTS","AMOUNT","RATE_DAILY","PERIOD"]
[312035274,1705566647151,-1810.88,0.00021917,2]
[312035275,1705566647160,-500.0,0.00021917,2]
[312035276,1705566647170,-509.62067534,0.00021917,2]
[312035277,1705566647180,-500.0,0.00021917,2]
[312035278,1705566647189,-824.69,0.00021917,2]
[312035279,1705566647198,-500.0,0.00021917,2]
[312035280,1705566647207,-500.0,0.00021917,2]
[312035281,1705566647217,-500.0,0.00021917,2]
[312035282,1705566647228,-587.44,0.00021917,2]
[312035283,1705566647237,-500.0,0.00021917,2]
[312035284,1705566647247,-1116.14,0.00021917,2]
[312035285,1705566647257,-500.0,0.00021917,2]
[312035286,1705566647267,-500.0,0.00021917,2]
[312035287,1705566647277,-500.0,0.00021917,2]
[312035288,1705566647288,-500.0,0.00021917,2]
[312035289,1705566647302,-1088.2,0.00021917,2]
[312035290,1705566647313,-500.0,0.00021917,2]
[312035291,1705566647323,-500.0,0.00021917,2]
[312035292,1705566647332,-1088.2,0.00021917,2]
[312035293,1705566647342,-1088.2,0.00021917,2]
[312035294,1705566647352,-500.0,0.00021917,2]
[312035295,1705566647361,-1088.2,0.00021917,2]
[312035296,1705566647370,-1088.2,0.00021917,2]
[312035297,1705566647381,-1943.83,0.00021917,2]
[312035298,1705566647390,-500.0,0.00021917,2]
[312035299,1705566647400,-500.0,0.00021917,2]
[312035300,1705566647409,-500.0,0.00021917,2]
[312035301,1705566647419,-500.0,0.00021917,2]
[312035302,1705566647429,-926.7,0.00021917,2]
[312035303,1705566647438,-500.0,0.00021917,2]
[312035304,1705566647448,-481.73431574,0.00021917,2]
[312035305,1705566647458,-551.25,0.00021917,2]
[312035306,1705566647467,-500.0,0.00021917,2]
[312035307,1705566647477,-500.0,0.00021917,2]
[312035308,1705566647486,-540.06,0.00021917,2]
[312035309,1705566647496,-500.0,0.00021917,2]
[312035310,1705566647508,-1038.25,0.00021917,2]
[312035311,1705566647518,-500.0,0.00021917,2]
[312035312,1705566647528,-500.0,0.00021917,2]
[312035313,1705566647538,-500.0,0.00021917,2]
[312035314,1705566647549,-500.0,0.00021917,2]
[312035315,1705566647558,-506.48877474,0.00021917,2]
[312035316,1705566647569,-500.0,0.00021917,2]
[312035317,1705566647580,-500.0,0.00021917,2]
[312035318,1705566647591,-539.16,0.00021917,2]
[312035319,1705566647601,-500.0,0.00021917,2]
[312035320,1705566647612,-500.0,0.00021917,2]
[312035321,1705566647622,-500.0,0.00021917,2]
[312035322,1705566647631,-502.27897322,0.00021917,2]
[312035323,1705566647641,-500.0,0.00021917,2]
[312035324,1705566647652,-500.0,0.00021917,2]
[312035325,1705566647662,-862.51,0.00021917,5]
[312035326,1705566647672,-1055.53,0.00021917,2]
[312035327,1705566647682,-594.99,0.00021917,2]
[312035328,1705566647693,-502.48659884,0.00021917,2]
[312035329,1705566647703,-541.23,0.00021917,2]
[312035330,1705566647713,-250.0,0.00021918,2]
[312035331,1705566647723,-151.0,0.00021918,2]
[312035332,1705566647734,-151.0,0.00021918,2]
[312035333,1705566647744,-151.0,0.00021918,2]
[312035334,1705566647757,-151.0,0.00021918,2]
[312035335,1705566647767,-151.0,0.00021918,2]
[312035336,1705566647777,-190.194562,0.00021918,2]
[312035337,1705566647787,-290.0,0.00021918,2]
[312035338,1705566647797,-290.0,0.00021918,2]
[312035339,1705566647807,-290.0,0.00021918,2]
[312035340,1705566647817,-290.0,0.00021918,2]
[312035341,1705566647827,-160.478837,0.00021918,2]
[312035342,1705566647838,-156.053143,0.00021918,2]
[312035343,1705566647848,-151.0,0.00021918,2]
[312035344,1705566647857,-151.0,0.00021918,2]
[312035345,1705566647867,-177.680703,0.00021918,2]
[312035346,1705566647877,-151.0,0.00021918,2]
[312035347,1705566647887,-275.01008,0.00021918,2]
[312035348,1705566647898,-151.0,0.00021918,2]
[312035349,1705566647909,-151.0,0.00021918,2]
[312035350,1705566647920,-151.0,0.00021918,2]
[312035351,1705566647932,-297.13,0.00021948,2]
[312035352,1705566647941,-956.98630892,0.0002197,2]
[312035353,1705566647950,-500.0,0.00021999,2]
[312035354,1705566647960,-500.0,0.00021999,2]
[312035355,1705566647969,-500.0,0.00021999,2]
[312035356,1705566647978,-500.0,0.00021999,2]
[312035357,1705566647988,-207.82039875,0.00022,2]
[312035358,1705566647998,-907.34510248,0.00022,2]
[312035359,1705566648010,-28245.0,0.00022,2]
[312035360,1705566648019,-151.0,0.00022,7]
[312035361,1705566648029,-151.0,0.00022,7]
[312035362,1705566648038,-450.0,0.00022,3]
[312035363,1705566648048,-1027.0,0.00022,2]
[312035364,1705566648057,-33446.01435889,0.00022014,2]
[312035365,1705566648066,-153.2,0.00022034,2]
[312035366,1705566648076,-800.0,0.00022036,2]
[312035367,1705566648086,-200.0,0.00022046,2]
[312035368,1705566648097,-200.0,0.00022069,2]
[312035369,1705566648107,-800.0,0.00022069,2]
[312035370,1705566648116,-211.35843961,0.00022091,2]
[312035371,1705566648127,-241.56767146,0.00022091,2]
[312035372,1705566648137,-3291.0807659,0.00022091,2]
[312035373,1705566648146,-800.0,0.00022101,2]
[312035374,1705566648155,-33446.01435889,0.00022112,2]
[312035375,1705566648165,-262.71,0.00022117,2]
[312035376,1705566648175,-1125.0,0.00022123,2]
[312035377,1705566648185,-956.98630892,0.00022125,2]
[312035378,1705566648194,-800.0,0.00022133,2]
[312035379,1705566648204,-500.0,0.00022181,2]
[312035380,1705566648213,-500.0,0.00022181,2]
[312035381,1705566648223,-193.83342457,0.00022189,2]
[312035382,1705566648233,-251.14364129,0.00022189,2]
[312035383,1705566648242,-437.38043808,0.00022189,2]
[312035384,1705566648252,-500.0,0.0002219,2]
[312035385,1705566648265,-500.0,0.0002219,2]
[312035386,1705566648275,-300.0,0.0002219,2]
[312035387,1705566648285,-300.0,0.0002219,2]
[312035388,1705566648299,-300.0,0.0002219,2]
[312035389,1705566648316,-300.0,0.0002219,2]
[312035390,1705566648327,-1088.2,0.0002219,2]
[312035391,1705566648337,-1088.2,0.0002219,2]
[312035392,1705566648347,-1088.2,0.0002219,2]
[312035393,1705566648356,-1088.2,0.0002219,2]
[312035394,1705566648368,-1088.2,0.0002219,2]
[312035395,1705566648377,-1088.2,0.0002219,2]
[312035396,1705566648390,-1088.2,0.0002219,2]
[312035397,1705566648400,-1088.2,0.0002219,2]
[312035398,1705566648410,-1088.2,0.0002219,2]
[312035399,1705566648419,-1088.2,0.0002219,2]
[312035400,1705566648429,-1088.2,0.0002219,2]
[312035401,1705566648438,-1088.2,0.0002219,2]
[312035402,1705566648448,-1088.2,0.0002219,2]
[312035403,1705566648458,-290.0,0.00022191,7]
[312035404,1705566648468,-290.0,0.00022191,7]
[312035405,1705566648478,-151.0,0.00022191,7]
[312035406,1705566648488,-151.0,0.00022191,7]
[312035407,1705566648497,-151.0,0.00022191,7]
[312035408,1705566648510,-2698241.41965862,0.00022191,3]
[312035409,1705566648519,-151.0,0.00022191,7]
[312035410,1705566648529,-151.0,0.00022191,7]
[312035411,1705566648538,-151.0,0.00022191,7]
[312035412,1705566648548,-176.853999,0.00022191,7]
[312035413,1705566648558,-290.0,0.00022191,7]
[312035414,1705566648568,-290.0,0.00022191,7]
[312035415,1705566648577,-290.0,0.00022191,7]
[312035416,1705566648587,-290.0,0.00022191,7]
[312035417,1705566648597,-231.610545,0.00022191,7]
[312035418,1705566648607,-151.0,0.00022191,7]
[312035419,1705566648617,-151.0,0.00022191,7]
[312035420,1705566648628,-449.94877008,0.00022191,2]
[312035421,1705566648637,-500.0,0.00022191,2]
[312035422,1705566648648,-521.6068481,0.00022191,2]
[312035423,1705566648658,-500.0,0.00022191,2]
[312035424,1705566648668,-500.0,0.00022191,2]
[312035425,1705566648678,-622.42196761,0.00022191,2]
[312035426,1705566648687,-500.0,0.00022191,2]
[312035427,1705566648697,-500.0,0.00022191,2]
[312035428,1705566648707,-500.0,0.00022191,2]
[312035429,1705566648716,-500.0,0.00022191,2]
[312035430,1705566648726,-676.67213997,0.00022191,2]
[312035431,1705566648736,-500.0,0.00022191,2]
[312035432,1705566648746,-500.0,0.00022191,2]
[312035433,1705566648758,-500.0,0.00022191,2]
[312035434,1705566648768,-500.0,0.00022191,2]
[312035435,1705566648778,-500.0,0.00022191,2]
[312035436,1705566648787,-500.0,0.00022191,2]
[312035437,1705566648797,-500.0,0.00022191,2]
[312035438,1705566648808,-604.29667172,0.00022191,2]
[312035439,1705566648818,-505.85071059,0.00022191,2]
[312035440,1705566648828,-500.0,0.00022191,2]
[312035441,1705566648837,-500.0,0.00022191,2]
[312035442,1705566648847,-500.0,0.00022191,2]
[312035443,1705566648857,-500.0,0.00022191,2]
[312035444,1705566648867,-500.0,0.00022191,2]
[312035445,1705566648878,-511.91495521,0.00022191,2]
[312035446,1705566648888,-500.0,0.00022191,2]
[312035447,1705566648898,-764.35,0.00022191,2]
[312035448,1705566648909,-500.0,0.00022191,2]
[312035449,1705566648919,-500.0,0.00022191,2]
[312035450,1705566648929,-500.0,0.00022191,2]
[312035451,1705566648940,-500.0,0.00022191,2]
[312035452,1705566648950,-500.0,0.00022191,2]
[312035453,1705566648961,-500.0,0.00022191,2]
[312035454,1705566648971,-500.0,0.00022191,2]
[312035455,1705566648981,-503.53757713,0.00022191,2]
[312035456,1705566648991,-500.0,0.00022191,2]
[312035457,1705566649002,-300.0,0.00022191,2]
[312035458,1705566649015,-484.3,0.00022191,2]
[312035459,1705566649024,-500.0,0.00022191,2]
[312035460,1705566649034,-500.0,0.00022191,2]
[312035461,1705566649044,-627.33569214,0.00022191,2]
[312035462,1705566649053,-500.0,0.00022191,2]
[312035463,1705566649063,-500.0,0.00022191,2]
[312035464,1705566649073,-500.0,0.00022191,2]
[312035465,1705566649083,-500.0,0.00022191,2]
[312035466,1705566649093,-500.0,0.00022191,2]
[312035467,1705566649103,-500.0,0.00022191,2]
[312035468,1705566649113,-544.98,0.00022191,2]
[312035469,1705566649122,-500.0,0.00022191,2]
[312035470,1705566649132,-304.55643752,0.00022191,2]
[312035471,1705566649142,-249.47948232,0.00022191,2]
[312035472,1705566649151,-500.0,0.00022191,2]
[312035473,1705566649162,-500.0,0.00022191,2]
[312035474,1705566649172,-500.0,0.00022191,2]
[312035475,1705566649182,-500.0,0.00022191,2]
[312035476,1705566649192,-500.0,0.00022191,2]
[312035477,1705566649202,-533.13690058,0.00022191,2]
[312035478,1705566649212,-500.0,0.00022191,2]
[312035479,1705566649222,-500.0,0.00022191,2]
[312035480,1705566649232,-500.0,0.00022191,2]
[312035481,1705566649242,-500.0,0.00022191,2]
[312035482,1705566649252,-500.0,0.00022191,2]
[312035483,1705566649264,-500.0,0.00022191,2]
[312035484,1705566649273,-510.94790962,0.00022191,2]
[312035485,1705566649282,-500.0,0.00022191,2]
[312035486,1705566649293,-500.0,0.00022191,2]
[312035487,1705566649302,-506.56230129,0.00022191,2]
[312035488,1705566649315,-257.3,0.00022191,2]
[312035489,1705566649324,-500.0,0.00022191,2]
[312035490,1705566649334,-500.0,0.00022191,2]
[312035491,1705566649344,-500.0,0.00022191,2]
[312035492,1705566649354,-500.0,0.00022191,2]
[312035493,1705566649363,-518.65110504,0.00022191,2]
[312035494,1705566649373,-500.0,0.00022191,2]
[312035495,1705566649383,-569.40816248,0.00022191,2]
[312035496,1705566649392,-227.36,0.00022191,2]
[312035497,1705566649402,-500.0,0.00022191,2]
[312035498,1705566649411,-500.0,0.00022191,2]
[312035499,1705566649421,-500.0,0.00022191,2]
[312035500,1705566649431,-501.45174992,0.00022191,2]
[312035501,1705566649440,-266.19,0.00022191,2]
[312035502,1705566649450,-500.0,0.00022191,2]
[312035503,1705566649459,-500.0,0.00022191,2]
[312035504,1705566649469,-500.31323222,0.00022191,2]
[312035505,1705566649478,-517.91997867,0.00022191,2]
[312035506,1705566649488,-500.0,0.00022191,2]
[312035507,1705566649714,-513.50542825,0.00022191,2]
[312035508,1705566649724,-500.0,0.00022191,2]
[312035509,1705566649734,-500.0,0.00022191,2]
[312035510,1705566649743,-500.0,0.00022191,2]
[312035511,1705566649753,-500.0,0.00022191,2]
[312035512,1705566649763,-500.0,0.00022191,2]
[312035513,1705566649772,-542.3,0.00022191,2]
[312035514,1705566649781,-500.0,0.00022191,2]
[312035515,1705566649791,-500.0,0.00022191,2]
[312035516,1705566649802,-500.0,0.00022191,2]
[312035517,1705566649812,-349.54967429,0.00022191,2]
[312035518,1705566649821,-544.13900376,0.00022191,2]
[312035519,1705566649832,-500.0,0.00022191,2]
[312035520,1705566649842,-500.0,0.00022191,2]
[312035521,1705566649851,-299.62610167,0.00022191,2]
[312035522,1705566649861,-500.0,0.00022191,2]
[312035523,1705566649871,-500.0,0.00022191,2]
[312035524,1705566649880,-526.00684446,0.00022191,2]
[312035525,1705566649890,-500.0,0.00022191,2]
[312035526,1705566649901,-500.0,0.00022191,2]
[312035527,1705566649912,-551.81888516,0.00022191,2]
[312035528,1705566649922,-500.0,0.00022191,2]
[312035529,1705566649934,-500.0,0.00022191,2]
[312035530,1705566649943,-500.0,0.00022191,2]
[312035531,1705566649953,-522.34840248,0.00022191,2]
[312035532,1705566649963,-500.0,0.00022191,2]
[312035533,1705566649973,-500.0,0.00022191,2]
[312035534,1705566649983,-500.0,0.00022191,2]
[312035535,1705566649992,-287.93705659,0.00022191,2]
[312035536,1705566650001,-500.0,0.00022191,2]
[312035537,1705566650012,-500.0,0.00022191,2]
[312035538,1705566650021,-500.0,0.00022191,2]
[312035539,1705566650030,-500.0,0.00022191,2]
[312035540,1705566650039,-500.0,0.00022191,2]
[312035541,1705566650049,-500.0,0.00022191,2]
[312035542,1705566650058,-500.0,0.00022191,2]
[312035543,1705566650067,-569.08,0.00022191,2]
[312035544,1705566650076,-500.0,0.00022191,2]
[312035545,1705566650086,-320.23369511,0.00022191,2]
[312035546,1705566650095,-500.0,0.00022191,2]
[312035547,1705566650105,-500.0,0.00022191,2]
[312035548,1705566650114,-500.0,0.00022191,2]
[312035549,1705566650123,-500.0,0.00022191,2]
[312035550,1705566650133,-505.31830128,0.00022191,2]
[312035551,1705566650143,-500.0,0.00022191,2]
[312035552,1705566650152,-500.0,0.00022191,2]
[312035553,1705566650162,-500.0,0.00022191,2]
[312035554,1705566650171,-500.0,0.00022191,2]
[312035555,1705566650181,-283.54446675,0.00022191,2]
[312035556,1705566650191,-500.0,0.00022191,2]
[312035557,1705566650201,-437.34,0.00022191,2]
[312035558,1705566650210,-500.0,0.00022191,2]
[312035559,1705566650220,-500.0,0.00022191,2]
[312035560,1705566650229,-500.0,0.00022191,2]
[312035561,1705566650238,-500.0,0.00022191,2]
[312035562,1705566650247,-500.0,0.00022191,2]
[312035563,1705566650260,-500.0,0.00022191,2]
[312035564,1705566650270,-500.0,0.00022191,2]
[312035565,1705566650281,-500.0,0.00022191,2]
[312035566,1705566650291,-500.0,0.00022191,2]
[312035567,1705566650301,-532.65,0.00022191,2]
[312035568,1705566650312,-500.0,0.00022191,2]
[312035569,1705566650322,-500.0,0.00022191,2]
[312035570,1705566650332,-500.0,0.00022191,2]
[312035571,1705566650342,-500.0,0.00022191,2]
[312035572,1705566650351,-500.0,0.00022191,2]
[312035573,1705566650361,-500.0,0.00022191,2]
[312035574,1705566650370,-500.0,0.00022191,2]
[312035575,1705566650380,-500.0,0.00022191,2]
[312035576,1705566650391,-500.0,0.00022191,2]
[312035577,1705566650401,-500.0,0.00022191,2]
[312035578,1705566650411,-500.0,0.00022191,2]
[312035579,1705566650420,-500.0,0.00022191,2]
[312035580,1705566650429,-500.0,0.00022191,2]
[312035581,1705566650439,-285.90373621,0.00022191,2]
[312035582,1705566650448,-600.0,0.00022191,2]
[312035583,1705566650457,-500.0,0.00022191,2]
[312035584,1705566650467,-500.0,0.00022191,2]
[312035585,1705566650476,-500.0,0.00022191,2]
[312035586,1705566650486,-500.0,0.00022191,2]
[312035587,1705566650496,-500.0,0.00022191,2]
[312035588,1705566650506,-500.0,0.00022191,2]
[312035589,1705566650517,-500.0,0.00022191,2]
[312035590,1705566650526,-500.0,0.00022191,2]
[312035591,1705566650535,-500.0,0.00022191,2]
[312035592,1705566650544,-508.85739687,0.00022191,2]
[312035593,1705566650554,-500.0,0.00022191,2]
[312035594,1705566650563,-537.24722248,0.00022191,2]
[312035595,1705566650573,-500.0,0.00022191,2]
[312035596,1705566650582,-500.0,0.00022191,2]
[312035597,1705566650592,-500.0,0.00022191,2]
[312035598,1705566650602,-542.05,0.00022191,2]
[312035599,1705566650611,-500.0,0.00022191,2]
[312035600,1705566650621,-500.0,0.00022191,2]
[312035601,1705566650630,-500.0,0.00022191,2]
[312035602,1705566650640,-500.0,0.00022191,2]
[312035603,1705566650650,-500.0,0.00022191,2]
[312035604,1705566650659,-500.0,0.00022191,2]
[312035605,1705566650668,-500.0,0.00022191,2]
[312035606,1705566650678,-500.0,0.00022191,2]
[312035607,1705566650687,-496.60566473,0.00022191,2]
[312035608,1705566650696,-500.0,0.00022191,2]
[312035609,1705566650706,-524.3300684,0.00022191,2]
[312035610,1705566650716,-500.0,0.00022191,2]
[312035611,1705566650726,-227.97,0.00022191,2]
[312035612,1705566650735,-162.77,0.00022191,2]
[312035613,1705566650745,-500.0,0.00022191,2]
[312035614,1705566650756,-500.0,0.00022191,2]
[312035615,1705566650765,-500.0,0.00022191,2]
[312035616,1705566650774,-500.0,0.00022191,2]
[312035617,1705566650783,-500.0,0.00022191,2]
[312035618,1705566650793,-500.0,0.00022191,2]
[312035619,1705566650803,-500.0,0.00022191,2]
[312035620,1705566650812,-500.0,0.00022191,2]
[312035621,1705566650821,-500.0,0.00022191,2]
[312035622,1705566650830,-500.0,0.00022191,2]
[312035623,1705566650840,-242.85347173,0.00022191,2]
[312035624,1705566650849,-500.0,0.00022191,2]
[312035625,1705566650859,-500.0,0.00022191,2]
[312035626,1705566650868,-344.28987887,0.00022191,2]
[312035627,1705566650877,-500.0,0.00022191,2]
[312035628,1705566650886,-500.0,0.00022191,2]
[312035629,1705566650895,-500.0,0.00022191,2]
[312035630,1705566650904,-500.0,0.00022191,2]
[312035631,1705566650913,-500.0,0.00022191,2]
[312035632,1705566650923,-500.0,0.00022191,2]
[312035633,1705566650932,-544.17,0.00022191,2]
[312035634,1705566650942,-500.0,0.00022191,2]
[312035635,1705566650952,-500.0,0.00022191,2]
[312035636,1705566650962,-617.67,0.00022191,2]
[312035637,1705566650971,-500.0,0.00022191,2]
[312035638,1705566650981,-500.0,0.00022191,2]
[312035639,1705566650990,-500.0,0.00022191,2]
[312035640,1705566651000,-500.0,0.00022191,2]
[312035641,1705566651011,-500.0,0.00022191,2]
[312035642,1705566651021,-500.0,0.00022191,2]
[312035643,1705566651030,-500.0,0.00022191,2]
[312035644,1705566651040,-500.0,0.00022191,2]
[312035645,1705566651049,-500.0,0.00022191,2]
[312035646,1705566651059,-500.0,0.00022191,2]
[312035647,1705566651068,-500.0,0.00022191,2]
[312035648,1705566651078,-500.0,0.00022191,2]
[312035649,1705566651087,-500.0,0.00022191,2]
[312035650,1705566651096,-500.0,0.00022191,2]
[312035651,1705566651106,-588.88379959,0.00022191,2]
[312035652,1705566651115,-500.0,0.00022191,2]
[312035653,1705566651124,-500.0,0.00022191,2]
[312035654,1705566651134,-500.0,0.00022191,2]
[312035655,1705566651143,-3088.2,0.00022191,2]
[312035656,1705566651153,-500.0,0.00022191,2]
[312035657,1705566651162,-503.92825061,0.00022191,2]
[312035658,1705566651171,-500.0,0.00022191,2]
[312035659,1705566651180,-150.0,0.00022191,2]
[312035660,1705566651190,-500.0,0.00022191,2]
[312035661,1705566651199,-500.0,0.00022191,2]
[312035662,1705566651208,-500.0,0.00022191,2]
[312035663,1705566651218,-500.0,0.00022191,2]
[312035664,1705566651227,-500.0,0.00022191,2]
[312035665,1705566651237,-500.0,0.00022191,2]
[312035666,1705566651247,-500.0,0.00022191,2]
[312035667,1705566651257,-662.85,0.00022191,2]
[312035668,1705566651266,-352.2031542,0.00022191,2]
[312035669,1705566651276,-500.0,0.00022191,2]
[312035670,1705566651285,-528.9588068,0.00022191,2]
[312035671,1705566651297,-500.0,0.00022191,2]
[312035672,1705566651308,-500.0,0.00022191,2]
[312035673,1705566651317,-492.39,0.00022191,2]
[312035674,1705566651327,-500.0,0.00022191,2]
[312035675,1705566651337,-500.0,0.00022191,2]
[312035676,1705566651347,-500.0,0.00022191,2]
[312035677,1705566651357,-629.81240754,0.00022191,2]
[312035678,1705566651366,-500.0,0.00022191,2]
[312035679,1705566651376,-500.0,0.00022191,2]
[312035680,1705566651386,-500.0,0.00022191,2]
[312035681,1705566651396,-352.76,0.00022191,2]
[312035682,1705566651406,-635.75,0.00022191,2]
[312035683,1705566651415,-500.0,0.00022191,2]
[312035684,1705566651424,-500.0,0.00022191,2]
[312035685,1705566651434,-604.0,0.00022191,2]
[312035686,1705566651443,-321.08026108,0.00022191,2]
[312035687,1705566651453,-500.0,0.00022191,2]
[312035688,1705566651462,-500.0,0.00022191,2]
[312035689,1705566651471,-500.0,0.00022191,2]
[312035690,1705566651481,-500.0,0.00022191,2]
[312035691,1705566651490,-500.0,0.00022191,2]
[312035692,1705566651499,-425.79,0.00022191,2]
[312035693,1705566651509,-500.0,0.00022191,2]
[312035694,1705566651519,-500.0,0.00022191,2]
[312035695,1705566651529,-500.0,0.00022191,2]
[312035696,1705566651538,-500.0,0.00022191,2]
[312035697,1705566651548,-500.0,0.00022191,2]
[312035698,1705566651557,-500.0,0.00022191,2]
[312035699,1705566651567,-500.0,0.00022191,2]
[312035700,1705566651576,-500.0,0.00022191,2]
[312035701,1705566651585,-500.0,0.00022191,2]
[312035702,1705566651595,-500.0,0.00022191,2]
[312035703,1705566651604,-500.0,0.00022191,2]
[312035704,1705566651613,-500.0,0.00022191,2]
[312035705,1705566651623,-500.0,0.00022191,2]
[312035706,1705566651633,-500.0,0.00022191,2]
[312035707,1705566651642,-500.0,0.00022191,2]
[312035708,1705566651652,-503.10753766,0.00022191,2]
[312035709,1705566651661,-500.0,0.00022191,2]
[312035710,1705566651671,-500.0,0.00022191,2]
[312035711,1705566651681,-500.0,0.00022191,2]
[312035712,1705566651691,-500.0,0.00022191,2]
[312035713,1705566651700,-500.0,0.00022191,2]
[312035714,1705566651710,-635.52,0.00022191,2]
[312035715,1705566651719,-500.0,0.00022191,2]
[312035716,1705566651728,-500.0,0.00022191,2]
[312035717,1705566651737,-500.0,0.00022191,2]
[312035718,1705566651747,-500.0,0.00022191,2]
[312035719,1705566651756,-500.0,0.00022191,2]
[312035720,1705566651766,-500.0,0.00022191,2]
[312035721,1705566651776,-547.28533864,0.00022191,2]
[312035722,1705566651785,-500.0,0.00022191,2]
[312035723,1705566651794,-500.0,0.00022191,2]
[312035724,1705566651804,-500.0,0.00022191,2]
[312035725,1705566651813,-500.0,0.00022191,2]
[312035726,1705566651822,-500.0,0.00022191,2]
[312035727,1705566651831,-515.69896807,0.00022191,2]
[312035728,1705566651841,-500.0,0.00022191,2]
[312035729,1705566651850,-500.0,0.00022191,2]
[312035730,1705566651859,-500.0,0.00022191,2]
[312035731,1705566651869,-500.0,0.00022191,2]
[312035732,1705566651879,-544.32,0.00022191,2]
[312035733,1705566651888,-996.83,0.00022191,2]
[312035734,1705566651897,-500.0,0.00022191,2]
[312035735,1705566651906,-500.0,0.00022191,2]
[312035736,1705566651916,-500.0,0.00022191,2]
[312035737,1705566651925,-500.0,0.00022191,2]
[312035738,1705566651934,-500.0,0.00022191,2]
[312035739,1705566651944,-624.17,0.00022191,2]
[312035740,1705566651954,-500.0,0.00022191,2]
[312035741,1705566651963,-614.9415743,0.00022191,2]
[312035742,1705566651973,-500.0,0.00022191,2]
[312035743,1705566652040,-793.27,0.00022191,2]
[312035744,1705566652051,-500.0,0.00022191,2]
[312035745,1705566652060,-500.0,0.00022191,2]
[312035746,1705566652069,-500.0,0.00022191,2]
[312035747,1705566652078,-500.0,0.00022191,2]
[312035748,1705566652088,-500.0,0.00022191,2]
[312035749,1705566652097,-500.0,0.00022191,2]
[312035750,1705566652106,-500.0,0.00022191,2]
[312035751,1705566652115,-344.10937695,0.00022191,2]
[312035752,1705566652124,-500.0,0.00022191,2]
[312035753,1705566652133,-500.0,0.00022191,2]
[312035754,1705566652142,-500.0,0.00022191,2]
[312035755,1705566652151,-500.0,0.00022191,2]
[312035756,1705566652161,-549.52,0.00022191,2]
[312035757,1705566652172,-500.0,0.00022191,2]
[312035758,1705566652182,-953.34,0.00022191,2]
[312035759,1705566652191,-965.74,0.00022191,2]
[312035760,1705566652200,-500.0,0.00022191,2]
[312035761,1705566652210,-500.0,0.00022191,2]
[312035762,1705566652220,-517.76,0.00022191,2]
[312035763,1705566652229,-500.0,0.00022191,2]
[312035764,1705566652238,-500.0,0.00022191,2]
[312035765,1705566652247,-500.0,0.00022191,2]
[312035766,1705566652257,-500.0,0.00022191,2]
[312035767,1705566652266,-500.0,0.00022191,2]
[312035768,1705566652275,-500.0,0.00022191,2]
[312035769,1705566652284,-500.0,0.00022191,2]
[312035770,1705566652293,-500.0,0.00022191,2]
[312035771,1705566652303,-546.97,0.00022191,2]
[312035772,1705566652315,-2323.65,0.00022191,2]
[312035773,1705566652324,-500.0,0.00022191,2]